Cogmind - Beta 10.2 @@@ ROGUE MODE // 2020.12.02 @ 09:09:22 Player: 3.14 Result: Escaped! Performance ------------- Evolutions (9) 4500 Regions Visited (34) 6800 Robots Destroyed (390) 1950 Value Destroyed (18985) 18985 Prototype IDs (87) 1740 Alien Tech Used (1) 200 Bonus (20731) 20731 TOTAL SCORE: 54906 Bonus ------- Triggered High Security 1500 High Alert Combat Kills 6686 Follower Combat Kills 3750 Network Hubs Disabled 400 Met Data Miner 300 Met Zhirov 300 Met Warlord at Base 500 MAIN.C Attacked Warlord 500 Warlord Defense Kill 634 Built Enhanced Grunts 300 Met R17 at Cetus 500 Met R17 at Research 2000 Met Warlord at Research 2000 Invited to Help at Command 2000 Win 3000 Friendly Fire -3639 Cogmind --------- Core Integrity 1389/1600 Matter 236/300 Energy 311/325 System Corruption 5% Temperature Cool (7) Movement Treading (152) Location To Epsilon Eridani Parts ------- > --- POWER (2) -------- Reinforced Antimatter Reactor > --- PROPULSION (4) --- Biometal Heavy Treads High-density Centrium Heavy Treads > --- UTILITY (12) ----- Advanced Cooling System High-capacity Storage Unit High-capacity Storage Unit High-capacity Storage Unit Advanced Salvage Targeting Computer Experimental Targeting Computer Experimental Target Analyzer Experimental Core Analyzer Advanced System Shield System Purifier > --- WEAPON (7) ------- KE Penetrator KE Penetrator KE Penetrator Hypervelocity Coil Gun Hypervelocity Coil Gun Hypervelocity Coil Gun Helical Railgun > --- INVENTORY (28) --- Centrium Heavy Treads Advanced Energy Well (800) High-capacity Matter Pod (200) Enhanced Optical Array Advanced Transmission Jammer Experimental Thermal Shield Advanced Force Field Advanced Force Field Transdimensional Reconstructor Null Cannon Heavy Machine Gun Heavy Machine Gun KE Penetrator KE Penetrator Railgun Micro-nuke Launcher Phasing Sabre Peak State ------------ > --- POWER ------------ Reinforced Antimatter Reactor Light Quantum Reactor > --- PROPULSION ------- Biometal Heavy Treads High-density Centrium Heavy Treads > --- UTILITY ---------- High-capacity Storage Unit High-capacity Storage Unit High-capacity Storage Unit Advanced Salvage Targeting Computer Experimental Targeting Computer Experimental Target Analyzer Experimental Core Analyzer Advanced Transmission Jammer Improved Heavy Armor Plating Advanced System Shield System Purifier > --- WEAPON ----------- KE Penetrator KE Penetrator KE Penetrator KE Penetrator Railgun Railgun Helical Railgun > --- INVENTORY -------- Centrium Heavy Treads Biometal Heavy Treads Advanced Cooling System Advanced Cooling System Advanced Energy Well High-capacity Matter Pod Enhanced Optical Array Improved Weapon Shielding Medium Reflective Plating Experimental Thermal Shield Advanced Force Field Advanced Force Field Long-range Tractor Beam Transdimensional Reconstructor Null Cannon Heavy Machine Gun Heavy Machine Gun KE Penetrator KE Penetrator KE Penetrator Hypervelocity Coil Gun Hypervelocity Coil Gun Hypervelocity Coil Gun Micro-nuke Launcher Phasing Sabre [Rating: 185] Favorites ----------- Power Quantum Reactor Engine Ion Engine Reactor Quantum Reactor Propulsion Centrium Heavy Treads Treads Centrium Heavy Treads Utility High-capacity Storage Unit Device Experimental Heat Sink Storage High-capacity Storage Unit Processor Experimental Targeting Computer Hackware Advanced System Shield Protection Centrium Medium Armor Plating Weapon KE Penetrator Energy Gun AWS/Thermal Energy Cannon Proton Cannon Ballistic Gun KE Penetrator Launcher Mini Grenade Launcher Impact Weapon Flail Slashing Weapon Katana Build | -11 -10 -9 -9 -9 -8 -8 -7 -7 -7 -7 -7 -7 -6 -6 -6 -6 -6 -6 -6 -6 -5 -5 -5 -5 -4 -4 -4 -4 -4 -3 -3 -3 -2 -1 ------- Run | Scr Mat Mat Min Exi Min Mat Fac Was Fac Low Low Dat Pro Fac Was Fac Ext Cet Arc Hub Fac Upp Upp Zhi Pro Fac Upp Upp War Pro Res Tes Res Acc Slots Evolved 18 | . . 2 . . . 2 2 . . . . . . 2 . . . . . . 2 . . . . 2 . . . . 2 . 2 2 Power 1 | . . . . . . . . . . . . . . . . . . . . . . . . . . . . . . . 1 . . . Propulsion 2 | . . . . . . . 1 . . . . . . 1 . . . . . . . . . . . . . . . . . . . . Utility 10 | . . . . . . 2 1 . . . . . . 1 . . . . . . 1 . . . . 2 . . . . 1 . 1 1 Weapon 5 | . . 2 . . . . . . . . . . . . . . . . . . 1 . . . . . . . . . . . 1 1 Parts Attached 389 | 7 16 20 2 3 . 24 25 6 6 . 2 . 8 2 9 6 9 17 6 23 12 2 5 10 5 12 4 2 15 2 10 35 56 28 Power 24 | 1 2 1 . . . 2 2 1 . . . . . . 1 . . 2 . 1 . . 1 2 . . 1 . 1 . 1 . 5 . Engine 8 | 1 2 1 . . . 2 2 . . . . . . . . . . . . . . . . . . . . . . . . . . . Core . | . . . . . . . . . . . . . . . . . . . . . . . . . . . . . . . . . . . Reactor 16 | . . . . . . . . 1 . . . . . . 1 . . 2 . 1 . . 1 2 . . 1 . 1 . 1 . 5 . Propulsion 34 | 2 4 3 . . . 4 5 1 . . . . . 1 2 . . 2 . . . . . 1 . 1 . . 1 . . 2 3 2 Treads 34 | 2 4 3 . . . 4 5 1 . . . . . 1 2 . . 2 . . . . . 1 . 1 . . 1 . . 2 3 2 Leg . | . . . . . . . . . . . . . . . . . . . . . . . . . . . . . . . . . . . Wheel . | . . . . . . . . . . . . . . . . . . . . . . . . . . . . . . . . . . . Hover . | . . . . . . . . . . . . . . . . . . . . . . . . . . . . . . . . . . . Flight . | . . . . . . . . . . . . . . . . . . . . . . . . . . . . . . . . . . . Utility 143 | 2 3 1 1 . . 9 8 2 1 . . . 4 1 3 2 1 6 4 6 3 2 4 6 1 2 3 1 9 1 6 16 20 15 Device 67 | . . . . . . 3 3 . 1 . . . 2 . . 2 . 2 1 3 . 2 3 2 . 1 3 1 6 . 3 11 7 11 Storage 17 | 2 3 1 1 . . 2 1 . . . . . . . . . . 1 1 1 . . . . . . . . . . . . 4 . Processor 14 | . . . . . . 1 1 . . . . . . . 2 . . . . 1 2 . 1 . . 1 . . 1 . . 1 3 . Hackware 1 | . . . . . . . . . . . . . . . . . . . . . . . . . . . . . . . 1 . . . Protection 44 | . . . . . . 3 3 2 . . . . 2 1 1 . 1 3 2 1 1 . . 4 1 . . . 2 1 2 4 6 4 Artifact . | . . . . . . . . . . . . . . . . . . . . . . . . . . . . . . . . . . . Weapon 188 | 2 7 15 1 3 . 9 10 2 5 . 2 . 4 . 3 4 8 7 2 16 9 . . 1 4 9 . 1 4 1 3 17 28 11 Energy Gun 4 | . 2 1 . 1 . . . . . . . . . . . . . . . . . . . . . . . . . . . . . . Energy Cannon 7 | . . . . . . . . . . . . . . . . . 2 . . 1 . . . . . 1 . . . . . 1 1 1 Ballistic Gun 158 | 2 5 12 1 2 . 8 9 1 5 . 2 . 2 . 3 4 5 7 2 12 8 . . . 3 7 . 1 4 1 2 16 24 10 Ballistic Cannon . | . . . . . . . . . . . . . . . . . . . . . . . . . . . . . . . . . . . Launcher 4 | . . 1 . . . 1 . . . . . . 2 . . . . . . . . . . . . . . . . . . . . . Special Weapon . | . . . . . . . . . . . . . . . . . . . . . . . . . . . . . . . . . . . Impact Weapon 1 | . . 1 . . . . . . . . . . . . . . . . . . . . . . . . . . . . . . . . Slashing Weapon 14 | . . . . . . . 1 1 . . . . . . . . 1 . . 3 1 . . 1 1 1 . . . . 1 . 3 . Piercing Weapon . | . . . . . . . . . . . . . . . . . . . . . . . . . . . . . . . . . . . Special Melee Weapon . | . . . . . . . . . . . . . . . . . . . . . . . . . . . . . . . . . . . Unidentified Prototypes 32 | . . . . . . 1 1 . . . . . . . . 1 . 4 2 4 1 . . 4 . . . . 4 . 2 5 3 . Parts Lost 22 | . . 1 . . . . 2 . . . . . . . . . . 1 . . . . 1 . 1 . . . . 1 . 1 2 12 Power 1 | . . . . . . . . . . . . . . . . . . . . . . . . . . . . . . . . . . 1 Propulsion 1 | . . . . . . . . . . . . . . . . . . . . . . . . . . . . . . . . . . 1 Utility 11 | . . . . . . . . . . . . . . . . . . 1 . . . . 1 . . . . . . . . 1 2 6 Weapon 9 | . . 1 . . . . 2 . . . . . . . . . . . . . . . . . 1 . . . . 1 . . . 4 Highest Loss Streak 7 | . . 1 . . . . 1 . . . . . . . . . . 1 . . . . 1 . 1 . . . . 1 . 1 1 7 Average Slot Usage (%) 89 | . 99 99 100 98 88 86 99 94 92 92 92 92 92 84 86 85 86 85 85 82 88 88 88 87 88 88 89 89 88 89 85 84 87 89 Engine 2 | . 14 11 11 11 11 9 7 1 . . . . . . . . . . . . . . . . . . . . . . . . . . Reactor 4 | . . . . . . . . 5 7 7 7 7 7 6 6 6 6 6 6 6 5 5 5 5 5 5 5 5 4 5 4 4 5 7 Treads 13 | . 27 22 22 22 22 18 23 17 15 15 15 15 15 12 13 13 13 13 13 13 11 11 11 11 11 9 10 10 10 10 9 8 8 8 Device 5 | . . . . . . 1 3 . 7 7 7 7 5 6 . 6 . 2 6 4 5 5 5 5 5 10 10 10 10 10 9 9 8 9 Storage 18 | . 28 22 22 22 22 18 22 23 23 23 23 23 23 20 20 20 20 20 20 19 17 17 17 17 17 15 15 15 15 15 14 14 13 12 Processor 10 | . . . . . . 6 7 7 7 7 7 7 7 6 18 13 13 10 6 4 11 11 11 11 11 15 15 15 15 15 14 14 15 16 Protection 3 | . . . . . . 5 3 7 . . . . 1 5 . . 5 5 5 5 5 5 5 4 5 5 5 5 4 5 3 3 4 3 Ballistic Gun 26 | . 22 42 44 40 22 21 29 24 29 30 30 30 29 26 26 25 25 13 25 23 28 29 29 27 27 25 26 26 26 26 21 22 25 27 Naked Turns . | . . . . . . . . . . . . . . . . . . . . . . . . . . . . . . . . . . . Heaviest Build 193 | 15 73 76 76 79 79 90 126 142 133 131 132 132 139 140 144 129 141 144 144 182 149 154 154 154 151 153 154 146 164 151 184 190 186 193 Greatest Support 165 | 40 40 40 40 40 40 40 68 98 98 98 98 98 98 140 140 140 140 160 160 160 160 160 160 160 160 160 160 160 160 155 155 160 165 165 Greatest Overweight (x) 2 | . 1 1 1 1 1 2 2 1 1 1 1 1 1 . 1 . 1 1 . 1 . . . . . 1 . . 1 . 1 1 1 1 Average Overweight (x) . | . . 1 1 1 1 1 1 1 1 1 1 1 1 . . . . . . . . . . . . . . . . . 1 1 1 . Largest Inventory Capacity 28 | 8 20 20 20 20 20 20 28 28 28 28 28 28 28 28 28 28 28 28 28 28 28 28 28 28 28 28 28 28 28 28 28 28 28 28 Average Capacity 26 | 5 9 20 20 20 20 20 27 28 28 28 28 28 28 28 28 28 28 28 28 27 28 28 28 28 28 28 28 28 28 28 28 28 28 28 Most Carried 28 | 4 13 20 20 20 20 20 28 28 28 28 28 28 28 28 28 28 28 28 28 28 28 28 28 28 28 28 27 28 28 28 28 28 28 28 Average Carried 25 | 2 8 17 20 19 19 19 26 26 27 28 28 28 28 26 27 27 28 27 27 27 26 28 27 27 27 26 27 27 27 27 25 27 27 22 Final Capacity 28 | 8 20 20 20 20 20 20 28 28 28 28 28 28 28 28 28 28 28 28 28 28 28 28 28 28 28 28 28 28 28 28 28 28 28 28 Final Carried 28 | 4 13 20 20 20 20 20 27 28 28 28 28 28 28 28 27 28 28 28 28 27 28 28 27 28 27 27 27 28 28 27 28 28 28 18 Class Distribution -------------------- 35% | Scavenger-Gunner 14% | Hauler-Gunner 12% | Scavenger-Executioner 12% | Hauler-Skirmisher 9% | Scavenger-Tank 4% | Mutant 4% | Hauler-Tank 3% | Scavenger-Mutant Dominant Class ---------------- Mutant | -10/Materials Scavenger-Gunner | -9/Materials Scavenger-Gunner | -9/Mines Scavenger-Gunner | -9/Exiles Scavenger-Mutant | -8/Mines Scavenger-Mutant | -8/Materials Scavenger-Tank | -7/Factory Hauler-Tank | -7/Waste Hauler-Skirmisher | -7/Factory Hauler-Skirmisher | -7/Lower Caves Hauler-Skirmisher | -7/Lower Caves Hauler-Skirmisher | -7/Data Miner Hauler-Skirmisher | -6/Proximity Caves Hauler-Skirmisher | -6/Factory Hauler-Gunner | -6/Waste Hauler-Skirmisher | -6/Factory Hauler-Gunner | -6/Extension Scavenger-Mutant | -6/Cetus Scavenger-Tank | -6/Archives Scavenger-Tank | -6/Hub_04(d) Scavenger-Gunner | -5/Factory Scavenger-Gunner | -5/Upper Caves Hauler-Gunner | -5/Upper Caves Scavenger-Gunner | -5/Zhirov Scavenger-Gunner | -4/Proximity Caves Scavenger-Gunner | -4/Factory Scavenger-Gunner | -4/Upper Caves Scavenger-Gunner | -4/Upper Caves Scavenger-Gunner | -4/Warlord Scavenger-Gunner | -3/Proximity Caves Scavenger-Gunner | -3/Research Hauler-Gunner | -3/Testing Scavenger-Executioner | -2/Research Scavenger-Executioner | -1/Access Resources | -11 -10 -9 -9 -9 -8 -8 -7 -7 -7 -7 -7 -7 -6 -6 -6 -6 -6 -6 -6 -6 -5 -5 -5 -5 -4 -4 -4 -4 -4 -3 -3 -3 -2 -1 ----------- Run | Scr Mat Mat Min Exi Min Mat Fac Was Fac Low Low Dat Pro Fac Was Fac Ext Cet Arc Hub Fac Upp Upp Zhi Pro Fac Upp Upp War Pro Res Tes Res Acc Matter Collected 15204 | 306 364 509 74 . . 420 942 341 30 30 20 . 212 . 442 30 685 221 76 1038 765 125 198 110 179 812 179 290 270 375 240 1328 2231 2362 Remotely 1320 | . . . . . . . . . . . . . . . . . . . . . . . . . . . . . . . . . . 1320 Salvage Created 27163 | 61 545 565 7 . . 1891 943 246 . . . . 231 . 1896 . 1297 540 . 1296 1050 158 280 127 265 1882 78 597 289 995 210 2030 3274 6410 Parts 1279 | 2 35 47 . . . 87 39 3 . . . . 4 . 21 . 41 20 . 65 50 7 14 2 13 105 4 24 22 52 12 159 160 291 Haulers Intercepted 10 | . 2 . . . . 3 2 . . . . . . . . . 1 . . 1 1 . . . . . . . . . . . . . Recyclers Shooed 17 | . 3 . . . . . . . . . . . . . . . 3 . . . . . . . . 2 . . . . . 3 . 6 Parts Field Recycled . | . . . . . . . . . . . . . . . . . . . . . . . . . . . . . . . . . . . Retrieved Matter . | . . . . . . . . . . . . . . . . . . . . . . . . . . . . . . . . . . . Parts Self-Destructed 267 | . . . . . . . . . . 14 9 . 16 . . . . . . . . 9 14 2 13 . . 24 114 52 . . . . Prevented 11 | . . . . . . . . . . . . . . . . . . . . . . . . . . . 4 . 7 . . . . . Kills | -11 -10 -9 -9 -9 -8 -8 -7 -7 -7 -7 -7 -7 -6 -6 -6 -6 -6 -6 -6 -6 -5 -5 -5 -5 -4 -4 -4 -4 -4 -3 -3 -3 -2 -1 ------- Run | Scr Mat Mat Min Exi Min Mat Fac Was Fac Low Low Dat Pro Fac Was Fac Ext Cet Arc Hub Fac Upp Upp Zhi Pro Fac Upp Upp War Pro Res Tes Res Acc Combat Hostiles Destroyed 298 | . 13 19 . . . 35 15 . . . . . 4 . 6 . 11 6 . 14 16 2 4 . 3 14 1 7 6 11 2 27 36 46 Melee 1 | . . . . . . . . . . . . . . . . . . . . 1 . . . . . . . . . . . . . . Guns 285 | . 13 16 . . . 35 13 . . . . . 2 . 6 . 11 1 . 13 16 2 4 . 3 14 1 7 6 11 2 27 36 46 Cannons 1 | . . . . . . . . . . . . . . . . . . 1 . . . . . . . . . . . . . . . . AOE 7 | . . 3 . . . . 2 . . . . . 2 . . . . . . . . . . . . . . . . . . . . . Classes Destroyed 23 | 1 6 2 1 . . 2 1 . . . . . . . 1 . 2 1 . 2 . . . . . . . . . . . . 3 1 Worker 22 | . 1 . . . . . . . . . . . . . . . 1 . . 5 2 . . . . 5 . . . . . 1 . 7 Builder 19 | . 1 . . . . . 1 . . . . . . . . . . . . 2 1 . . . . 5 . . . . . 2 . 7 Tunneler 3 | . . . 1 . . . 1 . . . . . . . . . 1 . . . . . . . . . . . . . . . . . Hauler 10 | . 2 . . . . 3 2 . . . . . . . . . 1 . . 1 1 . . . . . . . . . . . . . Recycler 24 | 1 . 1 . . . 2 1 . . . . . . . . . 2 . . . . . . . . 4 . . . . . . . 13 Mechanic 2 | . . . . . . . . . . . . . . . . . . . . 1 . . . . . . . . . . . . . 1 Operator 3 | . 1 . . . . . . . . . . . . . . . . . . 1 . . . . . . . . . . . 1 . . Watcher 3 | . . . . . . . . . . . . . . . . . . 1 . . . . . . . . . . . . . . . 2 Swarmer 40 | . 6 11 . . . 6 . . . . . . . . . . . . . . 6 . . . . . . . 3 . . 4 4 . Saboteur 2 | . . . . . . . . . . . . . . . . . . . . . . . . . . . . . . . . . . 2 Grunt 123 | . 7 5 . . . 22 12 . . . . . 4 . . . 5 1 . 4 5 1 1 . . 7 1 6 . 8 . 6 10 18 Brawler 10 | . . . . . . 1 . . . . . . . . . . . . . 1 . 1 1 . 1 1 . 1 . . . . 1 2 Duelist 6 | . . 1 . . . . . . . . . . . . . . . . . . . . . . 1 . . . . 1 . . . 3 Protector 1 | . . . . . . . . . . . . . . . . . . . . 1 . . . . . . . . . . . . . . Sentry 29 | . . 2 . . . 6 1 . . . . . . . . . 3 . . . 2 . . . 1 1 . . . 1 2 . 5 5 Demolisher 1 | . . . . . . . . . . . . . . . . . . . . . . . . . . . . . . . . . 1 . Specialist 2 | . . . . . . . . . . . . . . . . . . . . 1 . . . . . . . . . . . 1 . . Hunter 27 | . . . . . . 1 1 . . . . . . . . . 1 . . . 1 . 1 . . 1 . . . . . 5 10 6 Programmer 35 | . . . . . . . 1 . . . . . . . . . 1 1 . 1 2 . 1 . . 4 . . 3 . . 11 . 10 Behemoth 4 | . . . . . . . . . . . . . . . . . 1 . . . . . . . . . . . . 1 . . 2 . Compactor 6 | . . . . . . . . . . . . . . . 6 . . . . . . . . . . . . . . . . . . . Cetus Guard 4 | . . . . . . . . . . . . . . . . . . 4 . . . . . . . . . . . . . . . . Lightning 6 | . . . . . . . . . . . . . . . . . . . . 6 . . . . . . . . . . . . . . Striker 3 | . . . . . . . . . . . . . . . . . . . . . . . . . . . . . . . . . 3 . Samaritan 1 | . . . . . . . . . . . . . . . . . . . . . . . . . . . . . . . . . 1 . Surgeon 2 | . . . . . . . . . . . . . . . . . 2 . . . . . . . . . . . . . . . . . Thug 1 | . . . . . . . . . . . . . . . . . 1 . . . . . . . . . . . . . . . . . Savage 1 | . . . . . . . . . . . . . . . . . 1 . . . . . . . . . . . . . . . . . Best Kill Streak 21 | 1 4 4 1 . . 13 4 . . . . . 3 . 4 . 5 3 . 17 4 2 2 . 2 6 1 4 6 7 1 8 6 21 Combat Bots Only 13 | . 3 4 . . . 13 4 . . . . . 3 . 4 . 3 3 . 11 4 2 2 . 2 4 1 4 6 7 1 7 6 9 Max Kills in Single Turn 4 | 1 1 2 1 . . 2 3 . . . . . 2 . 1 . 1 1 . 2 2 1 1 . 1 2 1 1 1 2 1 2 3 4 Gunslinging 2 | . . 1 . . . . . . . . . . . . . . . . . 1 1 . . . . 1 . . . 1 . 1 2 2 Exploded 2 | . . 2 . . . . 2 . . . . . 2 . . . . . . . . . . . . . . . . . . . . . Melee 1 | . . . . . . . . . . . . . . . . . . . . 1 . . . . . . . . . . . . . . Uniques/NPCs Destroyed 1 | . . . . . . . . . . . . . . . . . . 1 . . . . . . . . . . . . . . . . A7 (-6/Cetus) Combat | -11 -10 -9 -9 -9 -8 -8 -7 -7 -7 -7 -7 -7 -6 -6 -6 -6 -6 -6 -6 -6 -5 -5 -5 -5 -4 -4 -4 -4 -4 -3 -3 -3 -2 -1 -------- Run | Scr Mat Mat Min Exi Min Mat Fac Was Fac Low Low Dat Pro Fac Was Fac Ext Cet Arc Hub Fac Upp Upp Zhi Pro Fac Upp Upp War Pro Res Tes Res Acc Damage Taken 21535 | . 523 659 . . . 1209 1292 . 22 . . . 229 . 54 123 700 743 . 1761 744 115 248 . 631 1044 26 378 84 1045 120 2386 2370 5029 Core 1504 | . 114 107 . . . 133 145 . . . . . . . . . 109 41 . 63 73 18 22 . 54 38 . 23 40 94 . 46 173 211 Absorbed by Shields 1736 | . . . . . . . . . . . . . . . . . 41 305 . . . . . . . . . . . . . 235 1081 74 Reduced by Siege Mode 978 | . . . . . . . . . . . . . . . . . . 23 . 50 39 10 10 . 45 58 . 20 . 104 . 151 129 339 Core Remaining (%) 81 | 100 54 . . . 73 75 . . . . . . 79 . . . . . . 74 . . . . 83 . . . . 83 . 96 88 86 Volleys Fired 641 | 6 48 45 . . . 36 43 . . . . . 11 . 20 . 32 33 1 43 32 5 7 . 7 40 2 17 6 18 7 48 67 67 Largest 7 | 2 2 4 . . . 4 4 . . . . . 4 . 4 . 4 3 4 4 5 5 5 . 5 5 5 5 5 5 5 5 6 7 Hottest 242 | 40 90 83 . . . 89 99 . . . . . 96 . 107 . 112 173 116 138 155 155 155 . 165 168 161 161 161 161 161 164 207 242 Shots Fired 2874 | 12 96 174 . . . 221 172 . . . . . 32 . 79 . 128 40 4 162 152 25 35 . 35 197 10 65 30 90 35 240 390 450 Gun 2830 | 12 96 172 . . . 221 172 . . . . . 28 . 79 . 128 7 4 162 152 25 35 . 35 196 10 65 30 90 35 240 388 448 Cannon 38 | . . . . . . . . . . . . . . . . . . 33 . . . . . . . 1 . . . . . . 2 2 Launcher 6 | . . 2 . . . . . . . . . . 4 . . . . . . . . . . . . . . . . . . . . . Special . | . . . . . . . . . . . . . . . . . . . . . . . . . . . . . . . . . . . Kinetic 2701 | 12 74 172 . . . 114 172 . . . . . 28 . 79 . 128 7 4 162 152 25 35 . 35 196 10 65 30 90 35 240 388 448 Thermal 112 | . . . . . . 107 . . . . . . . . . . . . . . . . . . . 1 . . . . . . 2 2 Explosive 6 | . . 2 . . . . . . . . . . 4 . . . . . . . . . . . . . . . . . . . . . Electromagnetic 55 | . 22 . . . . . . . . . . . . . . . . 33 . . . . . . . . . . . . . . . . Robot Hit Streak 48 | 8 17 12 . . . 30 13 . . . . . 17 . 13 . 16 17 4 27 22 14 17 . 16 29 8 33 20 24 18 27 48 36 Robot Miss Streak 5 | 1 4 4 . . . 3 5 . . . . . 2 . 4 . 4 4 . 5 2 1 1 . 1 2 1 1 1 2 1 2 3 3 Penetration Max 2 | . . . . . . . . . . . . . 1 . 1 . . . . 1 2 . 1 . . 1 . . 2 2 . 1 2 2 Secondary Targets 71 | . . 2 . . . 2 3 . . . . . 1 . 1 . 1 . . 8 3 1 . . 1 3 . 4 3 3 . 4 11 20 Max Gunslinging Chain 3 | . . 1 . . . 1 1 . . . . . 1 . 1 . 1 . . 2 1 1 . . 1 1 . 1 1 1 . 1 3 2 Autonomous 108 | . . . . . . 108 . . . . . . . . . . . . . . . . . . . . . . . . . . . . Shots Hit Robots 2127 | 10 67 101 . . . 169 129 2 . . . . 23 . 67 . 114 39 4 129 95 20 28 6 30 136 9 50 21 77 33 175 272 321 Core Hits 1074 | 2 29 35 . . . 64 61 1 . . . . 17 . 59 . 104 15 1 60 34 8 11 1 12 68 2 18 14 31 12 80 120 215 Critical Hits 299 | . . 3 . . . 1 1 . . . . . . . 1 . . 3 . 24 5 3 5 . 3 25 . 2 4 14 3 25 59 118 Critical Kills 104 | . . 1 . . . 1 . . . . . . . . 1 . . 1 . 7 3 1 2 . . 14 . 1 1 6 1 12 19 33 Critical Parts Destroyed 144 | . . 2 . . . . 1 . . . . . . . . . . 2 . 15 2 2 2 . 3 9 . 1 1 3 1 12 22 66 Melee Attacks 49 | . . 4 . . . . 3 2 . . . . . . . . 4 8 . 8 1 . . 6 5 3 . . . . 1 1 3 . Impact 4 | . . 4 . . . . . . . . . . . . . . . . . . . . . . . . . . . . . . . . Slashing 45 | . . . . . . . 3 2 . . . . . . . . 4 8 . 8 1 . . 6 5 3 . . . . 1 1 3 . Piercing . | . . . . . . . . . . . . . . . . . . . . . . . . . . . . . . . . . . . Sneak Attacks 16 | . . . . . . . . . . . . . . . . . 4 8 . 4 . . . . . . . . . . . . . . Combat Hostiles 1 | . . . . . . . . . . . . . . . . . . . . 1 . . . . . . . . . . . . . . Follow-up Attacks . | . . . . . . . . . . . . . . . . . . . . . . . . . . . . . . . . . . . Damage Inflicted 48444 | 106 891 1157 23 . 7 3884 1964 97 . . . . 521 . 1779 55 2609 1404 45 3998 1926 384 442 577 456 3382 139 1179 590 1921 682 3927 5257 9042 Guns 43956 | 104 865 934 . . . 3839 1631 . . . . . 283 . 1779 . 2224 74 45 3261 1926 384 442 . 456 3194 139 1179 590 1921 682 3848 5257 8899 Cannons 721 | . . . . . . . . . . . . . . . . . . 721 . . . . . . . . . . . . . . . . Explosions 941 | . . 214 . . . . 255 . . . . . 238 . . . . 62 . 172 . . . . . . . . . . . . . . Melee 2000 | . . . . . . . . 97 . . . . . . . . 375 547 . 404 . . . 577 . . . . . . . . . . Ramming 826 | 2 26 9 23 . 7 45 78 . . . . . . . . 55 10 . . 161 . . . . . 188 . . . . . 79 . 143 Kinetic 40808 | 104 644 934 . . . 912 1631 . . . . . 283 . 1779 . 2224 74 45 3261 1926 384 442 . 456 3194 139 1179 590 1921 682 3848 5257 8899 Thermal 2989 | . . . . . . 2927 . . . . . . . . . . . 62 . . . . . . . . . . . . . . . . Explosive 707 | . . 214 . . . . 255 . . . . . 238 . . . . . . . . . . . . . . . . . . . . . Electromagnetic 1114 | . 221 . . . . . . . . . . . . . . . . 721 . 172 . . . . . . . . . . . . . . Impact . | . . . . . . . . . . . . . . . . . . . . . . . . . . . . . . . . . . . Slashing 2000 | . . . . . . . . 97 . . . . . . . . 375 547 . 404 . . . 577 . . . . . . . . . . Piercing . | . . . . . . . . . . . . . . . . . . . . . . . . . . . . . . . . . . . Highest Corruption 5 | . 1 . . . . 4 . . . . . . . . . . . . . 4 2 2 5 2 . 3 3 1 1 . . 5 . 5 Average Corruption 1 | . 1 . . . . 4 . . . . . . . . . . . . . 1 1 1 2 1 . 2 1 1 1 . . 1 . 1 Corruption Purged 21 | . . . . . . . . . . . . . . . . . . . . . . 2 3 2 . . 2 . . . . 3 . 9 Effects 66 | . 4 . . . . 14 . . . . . . . . . . . . . 9 2 2 3 2 . 2 2 2 . . . 7 . 17 Message Errors 19 | . 2 . . . . 1 . . . . . . . . . . . . . 1 . 1 2 2 . . 1 1 . . . 5 . 3 Matter Fused 2 | . . . . . . 1 . . . . . . . . . . . . . . . . 1 . . . . . . . . . . . Heat Flow Errors 2 | . . . . . . 1 . . . . . . . . . . . . . . . . . . . . 1 . . . . . . . Energy Discharges 8 | . 1 . . . . 4 . . . . . . . . . . . . . 1 . 1 . . . . . . . . . . . 1 Parts Rejected 1 | . . . . . . . . . . . . . . . . . . . . . . . . . . . . . . . . . . 1 Data Loss (minor) 3 | . 1 . . . . . . . . . . . . . . . . . . . . . . . . 1 . . . . . . . 1 Targeting Errors 28 | . . . . . . 7 . . . . . . . . . . . . . 5 2 . . . . 1 . 1 . . . 2 . 10 Weapon Failures 3 | . . . . . . . . . . . . . . . . . . . . 2 . . . . . . . . . . . . . 1 Overload Shots . | . . . . . . . . . . . . . . . . . . . . . . . . . . . . . . . . . . . Overflow Damage 312 | . . 1 . . . 6 63 . . . . . . . . . 20 . . 102 . . . 99 . 21 . . . . . . . . Projectiles . | . . . . . . . . . . . . . . . . . . . . . . . . . . . . . . . . . . . Explosions 53 | . . 1 . . . . 52 . . . . . . . . . . . . . . . . . . . . . . . . . . . Melee 259 | . . . . . . 6 11 . . . . . . . . . 20 . . 102 . . . 99 . 21 . . . . . . . . Knockbacks 7 | . 1 . . . . . . . . . . . . . . . . . . 1 . . . . . 3 . . . . . . . 2 Impact 7 | . 1 . . . . . . . . . . . . . . . . . . 1 . . . . . 3 . . . . . . . 2 Kinetic . | . . . . . . . . . . . . . . . . . . . . . . . . . . . . . . . . . . . Secondary . | . . . . . . . . . . . . . . . . . . . . . . . . . . . . . . . . . . . Self-Inflicted Damage 157 | . . . . . . . 149 . . . . . . . . . . . . 8 . . . . . . . . . . . . . . Shots 3 | . . . . . . . 2 . . . . . . . . . . . . 1 . . . . . . . . . . . . . . Rammed 49 | 1 7 3 . . 1 3 2 . . . . . . . . 3 2 . . 8 . . . . . 7 . . . . . 4 . 8 Targets Rammed 52 | 1 8 3 1 . 1 3 3 . . . . . . . . 3 2 . . 8 . . . . . 7 . . . . . 4 . 8 Kicked . | . . . . . . . . . . . . . . . . . . . . . . . . . . . . . . . . . . . Crushed 3 | . 1 . 1 . . . 1 . . . . . . . . . . . . . . . . . . . . . . . . . . . Highest Temperature 487 | . 120 114 . . . 487 95 . . . . . 205 . 117 . 326 348 . 406 17 6 6 . 24 22 134 16 3 27 3 3 15 373 Average Temperature 74 | . 38 23 . . . 165 38 . . . . . 77 . 37 . 96 133 . 156 5 4 4 . 11 8 49 6 3 10 3 3 5 62 Received Heat Transfer 3551 | . 144 111 . . . 531 402 . 9 . . . 111 . . 12 186 56 . 417 66 54 27 . 72 129 9 90 9 201 36 42 243 594 Effects 6 | . . . . . . 2 . . . . . . 1 . . . 1 . . 2 . . . . . . . . . . . . . . Shutdowns 2 | . . . . . . 1 . . . . . . . . . . . . . 1 . . . . . . . . . . . . . . Energy Bleed 2 | . . . . . . . . . . . . . 1 . . . . . . 1 . . . . . . . . . . . . . . Short Circuit 1 | . . . . . . 1 . . . . . . . . . . . . . . . . . . . . . . . . . . . . Damage (minor) 1 | . . . . . . . . . . . . . . . . . 1 . . . . . . . . . . . . . . . . . Siege Activations 33 | . . . . . . . . . . . . . . . . . . 1 . 2 2 1 3 . 1 4 1 2 . 3 . 4 5 4 Total Turns 1243 | . . . . . . . . . . . . . . . . . . 19 . 92 32 14 24 . 18 79 9 33 . 63 . 108 96 656 Longest Duration 595 | . . . . . . . . . . . . . . . . . . 19 . 56 26 14 18 . 18 27 9 18 . 27 . 49 34 595 Robots Corrupted 5 | . . . . . . . . . . . . . . . . . . 4 . 1 . . . . . . . . . . . . . . Combat Hostiles 4 | . . . . . . . . . . . . . . . . . . 4 . . . . . . . . . . . . . . . . Parts Fried 19 | . 4 . . . . . 2 . . . . . . . . . . 9 . 4 . . . . . . . . . . . . . . Impact Corruptions 7 | . . . . . . 1 3 . . . . . . . . . . . . 1 . . . . . 2 . . . . . . . . Robots Melted . | . . . . . . . . . . . . . . . . . . . . . . . . . . . . . . . . . . . Combat Hostiles . | . . . . . . . . . . . . . . . . . . . . . . . . . . . . . . . . . . . Parts Melted 7 | . . . . . . 3 . . . . . . . . . . 2 . . . . . . . . . . . . . . . 2 . Heat Transferred 3676 | . . . . . . 3626 . . . . . . . . . . . 50 . . . . . . . . . . . . . . . . Parts Sabotaged . | . . . . . . . . . . . . . . . . . . . . . . . . . . . . . . . . . . . Parts Stolen . | . . . . . . . . . . . . . . . . . . . . . . . . . . . . . . . . . . . Parts Stripped . | . . . . . . . . . . . . . . . . . . . . . . . . . . . . . . . . . . . Power Chain Reactions 1 | . . . . . . . . . . . . . . . . . . 1 . . . . . . . . . . . . . . . . Missiles Intercepted . | . . . . . . . . . . . . . . . . . . . . . . . . . . . . . . . . . . . Alert | -11 -10 -9 -9 -9 -8 -8 -7 -7 -7 -7 -7 -7 -6 -6 -6 -6 -6 -6 -6 -6 -5 -5 -5 -5 -4 -4 -4 -4 -4 -3 -3 -3 -2 -1 ------- Run | Scr Mat Mat Min Exi Min Mat Fac Was Fac Low Low Dat Pro Fac Was Fac Ext Cet Arc Hub Fac Upp Upp Zhi Pro Fac Upp Upp War Pro Res Tes Res Acc Peak Influence 2025 | 5 199 432 36 . . 727 541 189 439 . . . . 56 19 439 215 601 385 1901 1371 . . . . 390 . . . . 216 474 1649 2025 Initial 1100 | . 3 83 31 . . . 291 189 . . . . . 56 19 . 134 57 229 134 1100 . . . . . . . . . 67 27 231 1100 Average 493 | . 115 192 34 . . 385 340 101 300 . . . . 56 4 228 105 357 352 883 1192 . . . . 135 . . . . 83 204 1082 1629 Maximum Alert Level 5 | . . 2 . . . 3 2 . 2 . . . . . . 2 1 2 1 5 4 . . . . 1 . . . . 1 2 5 5 Low Security (%) 41 | 100 100 42 100 . 100 18 . 100 14 . . . . 100 100 30 93 21 . 3 . . . . . 70 . . . . 95 48 . . Level 1 23 | . . 56 . . . 35 70 . 57 . . . . . . 52 6 42 100 17 . . . . . 29 . . . . 4 44 6 . Level 2 10 | . . . . . . 43 28 . 27 . . . . . . 16 . 35 . 23 . . . . . . . . . . . 6 11 . Level 3 5 | . . . . . . 2 . . . . . . . . . . . . . 18 15 . . . . . . . . . . . 33 . Level 4 12 | . . . . . . . . . . . . . . . . . . . . 25 84 . . . . . . . . . . . 40 38 Level 5 5 | . . . . . . . . . . . . . . . . . . . . 6 . . . . . . . . . . . . 6 61 High Security . | . . . . . . . . . . . . . . . . . . . . 5 . . . . . . . . . . . . 1 . Max Security . | . . . . . . . . . . . . . . . . . . . . . . . . . . . . . . . . . . . Squads Dispatched 66 | . 2 2 . . . 6 7 . 1 . . . . . . 4 2 . . 6 3 . . . . 4 . . . . 1 5 8 15 Investigation 16 | . 1 . . . . 1 1 . . . . . . . . 2 . . . . . . . . . 1 . . . . 1 1 6 2 Extermination 16 | . . . . . . . 1 . . . . . . . . 2 . . . 3 1 . . . . 2 . . . . . 3 . 4 Reinforcement 18 | . 1 2 . . . 3 2 . 1 . . . . . . . 2 . . 2 . . . . . 1 . . . . . 1 2 1 Assault 8 | . . . . . . . . . . . . . . . . . . . . 1 2 . . . . . . . . . . . . 5 Garrison 8 | . . . . . . 2 3 . . . . . . . . . . . . . . . . . . . . . . . . . . 3 Intercept . | . . . . . . . . . . . . . . . . . . . . . . . . . . . . . . . . . . . Construction Impeded 5 | . . 1 . . . 2 . . . . . . . . . . 1 . . . . . . . . . . . . . . . . 1 Haulers Reinforced 3 | . . . . . . . 2 . . . . . . . . . . . . 1 . . . . . . . . . . . . . . Stealth | -11 -10 -9 -9 -9 -8 -8 -7 -7 -7 -7 -7 -7 -6 -6 -6 -6 -6 -6 -6 -6 -5 -5 -5 -5 -4 -4 -4 -4 -4 -3 -3 -3 -2 -1 --------- Run | Scr Mat Mat Min Exi Min Mat Fac Was Fac Low Low Dat Pro Fac Was Fac Ext Cet Arc Hub Fac Upp Upp Zhi Pro Fac Upp Upp War Pro Res Tes Res Acc Distress Signals 30 | . . . . . . . 1 . . . . . . . . . 2 2 . 1 . . . . . 2 . . 2 . 2 2 13 3 Communications Jammed 122 | . . . . . . . . . . . . . . . . . . . . . . . . . . . . . . . . 21 . 101 Distress Signals 120 | . . . . . . . . . . . . . . . . . . . . . . . . . . . . . . . . 19 . 101 Times Spotted 487 | . 25 26 . . . 40 17 . 4 . 7 . 8 . 6 2 30 24 1 47 23 3 5 . 4 22 1 10 26 12 2 32 42 68 Peak Tracking Total 13 | . 5 6 . . . 11 4 . 2 . 4 . 3 . 3 2 3 6 1 13 6 3 3 . 3 6 1 8 10 9 1 3 7 9 Tactical Retreats 18 | . 1 3 . . . 2 1 . . . . . 1 . . . 1 . . . . 1 1 . 1 3 . 1 . 1 . 1 . . Traps | -11 -10 -9 -9 -9 -8 -8 -7 -7 -7 -7 -7 -7 -6 -6 -6 -6 -6 -6 -6 -6 -5 -5 -5 -5 -4 -4 -4 -4 -4 -3 -3 -3 -2 -1 ------- Run | Scr Mat Mat Min Exi Min Mat Fac Was Fac Low Low Dat Pro Fac Was Fac Ext Cet Arc Hub Fac Upp Upp Zhi Pro Fac Upp Upp War Pro Res Tes Res Acc Traps Triggered 14 | . 4 1 . . . . 2 . 1 . . . . 1 . 1 1 . . 1 . . . . . 1 . . . . . . . 1 Indirectly 1 | . . . . . . . . . . . . . . . . . . . . 1 . . . . . . . . . . . . . . Trap Hack Attempts . | . . . . . . . . . . . . . . . . . . . . . . . . . . . . . . . . . . . Triggered . | . . . . . . . . . . . . . . . . . . . . . . . . . . . . . . . . . . . Disarmed 6 | . . 6 . . . . . . . . . . . . . . . . . . . . . . . . . . . . . . . . Reprogrammed . | . . . . . . . . . . . . . . . . . . . . . . . . . . . . . . . . . . . Reused . | . . . . . . . . . . . . . . . . . . . . . . . . . . . . . . . . . . . Traps Extracted . | . . . . . . . . . . . . . . . . . . . . . . . . . . . . . . . . . . . Installed . | . . . . . . . . . . . . . . . . . . . . . . . . . . . . . . . . . . . Triggered 7 | . . . . . . . . . . . . . . . . . . . . . . . . . . . 1 . 6 . . . . . Machines | -11 -10 -9 -9 -9 -8 -8 -7 -7 -7 -7 -7 -7 -6 -6 -6 -6 -6 -6 -6 -6 -5 -5 -5 -5 -4 -4 -4 -4 -4 -3 -3 -3 -2 -1 ---------- Run | Scr Mat Mat Min Exi Min Mat Fac Was Fac Low Low Dat Pro Fac Was Fac Ext Cet Arc Hub Fac Upp Upp Zhi Pro Fac Upp Upp War Pro Res Tes Res Acc Machines Disabled 43 | . 1 1 . . . . 4 . 1 . . . . . . 4 . 2 1 15 1 . . . . 4 . . . . . 1 4 4 Max in Single Turn 13 | . 1 1 . . . . 2 . . . . . . . . . . . . 13 1 . . . . 1 . . . . . 1 2 1 Garrison Access 4 | . . . . . . . . . . . . . . . . . . . . . . . . . . . . . . . . . 4 . Network Hub 2 | . . . . . . . . . . . . . . . . . . . . 2 . . . . . . . . . . . . . . Machines Sabotaged . | . . . . . . . . . . . . . . . . . . . . . . . . . . . . . . . . . . . Garrisons Compromised . | . . . . . . . . . . . . . . . . . . . . . . . . . . . . . . . . . . . Overloaded Fab Kills . | . . . . . . . . . . . . . . . . . . . . . . . . . . . . . . . . . . . Fab Network Shutdowns . | . . . . . . . . . . . . . . . . . . . . . . . . . . . . . . . . . . . Hacking | -11 -10 -9 -9 -9 -8 -8 -7 -7 -7 -7 -7 -7 -6 -6 -6 -6 -6 -6 -6 -6 -5 -5 -5 -5 -4 -4 -4 -4 -4 -3 -3 -3 -2 -1 --------- Run | Scr Mat Mat Min Exi Min Mat Fac Was Fac Low Low Dat Pro Fac Was Fac Ext Cet Arc Hub Fac Upp Upp Zhi Pro Fac Upp Upp War Pro Res Tes Res Acc Machines Accessed 72 | . 7 6 . 2 . 4 2 . 3 . . 3 . . . 5 3 1 . 7 1 . . 4 . 1 . . . . 6 7 5 5 Terminals 48 | . 6 5 . . . 3 . . 2 . . . . . . 4 3 1 . 7 1 . . . . . . . . . 5 5 1 5 Fabricators 3 | . . . . . . . 1 . 1 . . . . . . . . . . . . . . . . . . . . . 1 . . . Repair Stations 5 | . 1 1 . . . 1 . . . . . . . . . . . . . . . . . . . 1 . . . . . 1 . . Recycling Units . | . . . . . . . . . . . . . . . . . . . . . . . . . . . . . . . . . . . Scanalyzers 1 | . . . . . . . . . . . . . . . . . . . . . . . . . . . . . . . . 1 . . Garrison Access 6 | . . . . . . . 1 . . . . . . . . 1 . . . . . . . . . . . . . . . . 4 . Total Hacks 268 | . 18 31 . 2 . 8 4 . 9 . . 22 . . . 9 12 2 . 23 8 . . 17 . 2 . . . . 31 34 12 24 Successful 143 | . 10 24 . 2 . 3 1 . 4 . . 22 . . . 1 8 . . 7 4 . . 17 . 2 . . . . 14 13 4 7 Failed 125 | . 8 7 . . . 5 3 . 5 . . . . . . 8 4 2 . 16 4 . . . . . . . . . 17 21 8 17 Catastrophic 24 | . . . . . . 1 1 . . . . . . . . 2 1 1 . . . . . . . . . . . . 5 5 1 7 Database Lockouts . | . . . . . . . . . . . . . . . . . . . . . . . . . . . . . . . . . . . Manual 91 | . 10 12 . 1 . 4 1 . 5 . . . . . . . 9 1 . 15 5 . . . . . . . 1 . 3 10 8 6 Terminals 184 | . 16 21 . . . 6 . . 8 . . . . . . 8 12 2 . 23 8 . . . . . . . . . 24 28 4 24 Fabricators 11 | . . . . . . . 3 . 1 . . . . . . . . . . . . . . . . . . . . . 7 . . . Repair Stations 20 | . 2 10 . . . 2 . . . . . . . . . . . . . . . . . . . 2 . . . . . 4 . . Recycling Units . | . . . . . . . . . . . . . . . . . . . . . . . . . . . . . . . . . . . Scanalyzers 2 | . . . . . . . . . . . . . . . . . . . . . . . . . . . . . . . . 2 . . Garrison Access 10 | . . . . . . . 1 . . . . . . . . 1 . . . . . . . . . . . . . . . . 8 . Terminal Hacks 90 | . 4 8 . 2 . 1 . . 3 . . 22 . . . 1 6 . . 4 4 . . 17 . . . . . . 10 5 . 3 Record 12 | . . . . 1 . . . . . . . 6 . . . . . . . . . . . 5 . . . . . . . . . . Part Schematic 16 | . 1 . . . . . . . 1 . . 9 . . . . . . . . . . . 4 . . . . . . . 1 . . Robot Schematic 4 | . . . . . . . . . . . . 4 . . . . . . . . . . . . . . . . . . . . . . Robot Analysis 8 | . 3 1 . . . . . . . . . . . . . . . . . . . . . 4 . . . . . . . . . . Prototype ID Bank 11 | . . 1 . . . . . . . . . 3 . . . . . . . . . . . 4 . . . . . . 2 1 . . Open Door 1 | . . . . . . . . . . . . . . . . 1 . . . . . . . . . . . . . . . . . . Level Access Points 2 | . . . . . . . . . . . . . . . . . . . . 1 . . . . . . . . . . . . . 1 Branch Access Points 4 | . . . . . . . . . 1 . . . . . . . . . . . 1 . . . . . . . . . 1 . . 1 Terminal Index 4 | . . 1 . . . . . . 1 . . . . . . . 1 . . . . . . . . . . . . . 1 . . . Alert Level 3 | . . . . . . . . . . . . . . . . . 1 . . . . . . . . . . . . . 1 . . 1 Unreport Threat 9 | . . 2 . . . . . . . . . . . . . . 3 . . . 2 . . . . . . . . . 1 1 . . Locate Traps 6 | . . . . . . 1 . . . . . . . . . . 1 . . . 1 . . . . . . . . . 2 1 . . Disarm Traps 2 | . . 2 . . . . . . . . . . . . . . . . . . . . . . . . . . . . . . . . Hauler Manifests 1 | . . 1 . . . . . . . . . . . . . . . . . . . . . . . . . . . . . . . . Zone Layout 6 | . . . . . . . . . . . . . . . . . . . . 3 . . . . . . . . . . 2 1 . . EX-Prototype ID Bank 1 | . . . . 1 . . . . . . . . . . . . . . . . . . . . . . . . . . . . . . Fabricator Hacks 3 | . . . . . . . . . . . . . . . . . . . . . . . . . . . . . . . 3 . . . Load Schematic 1 | . . . . . . . . . . . . . . . . . . . . . . . . . . . . . . . 1 . . . Build 2 | . . . . . . . . . . . . . . . . . . . . . . . . . . . . . . . 2 . . . Repair Station Hacks 16 | . 1 10 . . . 2 . . . . . . . . . . . . . . . . . . . 2 . . . . . 1 . . Scan Component 9 | . 1 5 . . . 1 . . . . . . . . . . . . . . . . . . . 1 . . . . . 1 . . Repair 7 | . . 5 . . . 1 . . . . . . . . . . . . . . . . . . . 1 . . . . . . . . Recycling Unit Hacks . | . . . . . . . . . . . . . . . . . . . . . . . . . . . . . . . . . . . Scanalyzer 1 | . . . . . . . . . . . . . . . . . . . . . . . . . . . . . . . . 1 . . Insert Component 1 | . . . . . . . . . . . . . . . . . . . . . . . . . . . . . . . . 1 . . Garrison Access Hacks . | . . . . . . . . . . . . . . . . . . . . . . . . . . . . . . . . . . . Unauthorized Hacks 33 | . 5 6 . . . . 1 . 1 . . . . . . . 2 . . 3 . . . . . . . . . . 1 6 4 4 Terminals 28 | . 5 6 . . . . . . 1 . . . . . . . 2 . . 3 . . . . . . . . . . 1 6 . 4 Track 15 | . 2 3 . . . . . . . . . . . . . . 1 . . 3 . . . . . . . . . . . 4 . 2 Botnet 13 | . 3 3 . . . . . . 1 . . . . . . . 1 . . . . . . . . . . . . . 1 2 . 2 Fabricators 1 | . . . . . . . 1 . . . . . . . . . . . . . . . . . . . . . . . . . . . Download 1 | . . . . . . . 1 . . . . . . . . . . . . . . . . . . . . . . . . . . . Repair Stations . | . . . . . . . . . . . . . . . . . . . . . . . . . . . . . . . . . . . Recycling Units . | . . . . . . . . . . . . . . . . . . . . . . . . . . . . . . . . . . . Scanalyzers . | . . . . . . . . . . . . . . . . . . . . . . . . . . . . . . . . . . . Garrison Access 4 | . . . . . . . . . . . . . . . . . . . . . . . . . . . . . . . . . 4 . Jam 4 | . . . . . . . . . . . . . . . . . . . . . . . . . . . . . . . . . 4 . Data Cores Recovered 3 | . 1 . . . . . . . . . . . . . . . . . . 1 . . . . . . . . . . . 1 . . Used 1 | . . . . . . . . . . . . . . . . . . . . . . . . . . . . . . . . 1 . . Hacking Detections 54 | . 7 5 . . . 3 2 . 3 . . . . . . 4 4 2 . 7 . . . . . . . . . . 6 5 2 4 Full Trace Events 7 | . 1 . . . . . . . . . . . . . . 2 . . . . . . . . . . . . . . . 1 1 2 Feedback Events 1 | . . . . . . . . . . . . . . . . . . . . . . . . . . . . . . . . . . 1 Corruption 1 | . . . . . . . . . . . . . . . . . . . . . . . . . . . . . . . . . . 1 Feedback Blocked . | . . . . . . . . . . . . . . . . . . . . . . . . . . . . . . . . . . . Robot Schematics Acquired 4 | . . . . . . . . . . . . 4 . . . . . . . . . . . . . . . . . . . . . . Robots Built . | . . . . . . . . . . . . . . . . . . . . . . . . . . . . . . . . . . . Matter . | . . . . . . . . . . . . . . . . . . . . . . . . . . . . . . . . . . . Time . | . . . . . . . . . . . . . . . . . . . . . . . . . . . . . . . . . . . Total Robot Build Rating . | . . . . . . . . . . . . . . . . . . . . . . . . . . . . . . . . . . . Part Schematics Acquired 17 | . 1 . . . . . 1 . 1 . . 9 . . . . . . . . . . . 4 . . . . . . . 1 . . Parts Built 4 | . . . . . . . . . . . . . . . . . . . . . . . . . . . . . . . 4 . . . Matter 424 | . . . . . . . . . . . . . . . . . . . . . . . . . . . . . . . 424 . . . Time 106 | . . . . . . . . . . . . . . . . . . . . . . . . . . . . . . . 106 . . . Total Part Build Rating 24 | . . . . . . . . . . . . . . . . . . . . . . . . . . . . . . . 24 . . . Parts Repaired 6 | . . 5 . . . 1 . . . . . . . . . . . . . . . . . . . . . . . . . . . . Time 264 | . . 130 . . . 26 . . . . . . . . . . . . . . . . . . . 108 . . . . . . . . Parts Recycled . | . . . . . . . . . . . . . . . . . . . . . . . . . . . . . . . . . . . Recycled Matter . | . . . . . . . . . . . . . . . . . . . . . . . . . . . . . . . . . . . Retrieved Matter . | . . . . . . . . . . . . . . . . . . . . . . . . . . . . . . . . . . . Retrieved Components . | . . . . . . . . . . . . . . . . . . . . . . . . . . . . . . . . . . . Parts Scanalyzed . | . . . . . . . . . . . . . . . . . . . . . . . . . . . . . . . . . . . Part Schematics Acquired . | . . . . . . . . . . . . . . . . . . . . . . . . . . . . . . . . . . . Parts Damaged . | . . . . . . . . . . . . . . . . . . . . . . . . . . . . . . . . . . . Bothacking | -11 -10 -9 -9 -9 -8 -8 -7 -7 -7 -7 -7 -7 -6 -6 -6 -6 -6 -6 -6 -6 -5 -5 -5 -5 -4 -4 -4 -4 -4 -3 -3 -3 -2 -1 ------------ Run | Scr Mat Mat Min Exi Min Mat Fac Was Fac Low Low Dat Pro Fac Was Fac Ext Cet Arc Hub Fac Upp Upp Zhi Pro Fac Upp Upp War Pro Res Tes Res Acc Used RIF Installer . | . . . . . . . . . . . . . . . . . . . . . . . . . . . . . . . . . . . Robots Hacked . | . . . . . . . . . . . . . . . . . . . . . . . . . . . . . . . . . . . Non-combat . | . . . . . . . . . . . . . . . . . . . . . . . . . . . . . . . . . . . Combat . | . . . . . . . . . . . . . . . . . . . . . . . . . . . . . . . . . . . Robot Hacks Applied . | . . . . . . . . . . . . . . . . . . . . . . . . . . . . . . . . . . . Relay Couplers Released 8 | . . . . . . . . . . . . . . . . . . . . 4 . . . . . 4 . . . . . . . . Programmers 8 | . . . . . . . . . . . . . . . . . . . . 4 . . . . . 4 . . . . . . . . Robots Rewired 18 | . . . . 2 . . . . . . . . . . . . 11 . . . 1 . . . . 4 . . . . . . . . Allies Hacked 1 | . . . . . . . . . . . . . . . . . . . . . . . . . . 1 . . . . . . . . Hacks Repelled . | . . . . . . . . . . . . . . . . . . . . . . . . . . . . . . . . . . . Allies | -11 -10 -9 -9 -9 -8 -8 -7 -7 -7 -7 -7 -7 -6 -6 -6 -6 -6 -6 -6 -6 -5 -5 -5 -5 -4 -4 -4 -4 -4 -3 -3 -3 -2 -1 -------- Run | Scr Mat Mat Min Exi Min Mat Fac Was Fac Low Low Dat Pro Fac Was Fac Ext Cet Arc Hub Fac Upp Upp Zhi Pro Fac Upp Upp War Pro Res Tes Res Acc Total Allies 76 | . . . . 2 . . . 20 . . . . 1 . 18 . 25 5 . . 1 . . . . 4 . . . . . . . . Largest Group 20 | . . . . 2 2 2 . 20 20 17 16 7 7 2 19 19 16 6 5 4 1 . . . . 3 . . . . . . . . Highest-Rated Group 682 | . . . . 16 16 16 . 521 521 452 438 202 202 127 682 682 476 620 470 376 29 . . . . 145 . . . . . . . . Highest-Rated Ally 156 | . . . . 8 8 8 . 35 35 35 35 33 94 94 94 50 156 156 94 94 29 . . . . 49 . . . . . . . . Total Orders 7 | . . . . . . . . . . . . . . . . . 1 2 3 1 . . . . . . . . . . . . . . STAY 3 | . . . . . . . . . . . . . . . . . 1 1 . 1 . . . . . . . . . . . . . . ROAM 1 | . . . . . . . . . . . . . . . . . . . 1 . . . . . . . . . . . . . . . FOLLOW 3 | . . . . . . . . . . . . . . . . . . 1 2 . . . . . . . . . . . . . . . Ally Attacks 646 | . . . . . . 2 . . 58 26 75 . 37 . 18 49 189 52 25 80 5 . . . . 30 . . . . . . . . Total Damage 16527 | . . . . . . . . . 1144 518 1743 . 1019 . 334 968 4569 1442 850 3222 75 . . . . 643 . . . . . . . . Kills 128 | . . . . . . . . . 12 9 14 . 8 . . 8 25 14 4 27 2 . . . . 5 . . . . . . . . Allies Corrupted 1 | . . . . . . . . . . . . . . . . 1 . . . . . . . . . . . . . . . . . . Allies Melted 1 | . . . . . . . . . . . . . . . . . . . . . . . . . . 1 . . . . . . . . Intel | -11 -10 -9 -9 -9 -8 -8 -7 -7 -7 -7 -7 -7 -6 -6 -6 -6 -6 -6 -6 -6 -5 -5 -5 -5 -4 -4 -4 -4 -4 -3 -3 -3 -2 -1 ------- Run | Scr Mat Mat Min Exi Min Mat Fac Was Fac Low Low Dat Pro Fac Was Fac Ext Cet Arc Hub Fac Upp Upp Zhi Pro Fac Upp Upp War Pro Res Tes Res Acc Robot Analysis Total 8 | . 3 1 . . . . . . . . . . . . . . . . . . . . . 4 . . . . . . . . . . Derelict Logs Recovered 6 | . . . 1 . . . . . . . 1 . . . . . . . . . . 1 1 . 1 . 1 . . . . . . . Drone Launches . | . . . . . . . . . . . . . . . . . . . . . . . . . . . . . . . . . . . Drone Recoveries . | . . . . . . . . . . . . . . . . . . . . . . . . . . . . . . . . . . . Exploration | -11 -10 -9 -9 -9 -8 -8 -7 -7 -7 -7 -7 -7 -6 -6 -6 -6 -6 -6 -6 -6 -5 -5 -5 -5 -4 -4 -4 -4 -4 -3 -3 -3 -2 -1 ------------- Run | Scr Mat Mat Min Exi Min Mat Fac Was Fac Low Low Dat Pro Fac Was Fac Ext Cet Arc Hub Fac Upp Upp Zhi Pro Fac Upp Upp War Pro Res Tes Res Acc Turns Passed 25039 | 99 1194 997 178 848 47 899 1101 743 460 555 424 157 546 89 651 625 1323 591 224 1609 610 452 372 427 685 885 551 405 1109 894 751 1301 1883 1354 Spaces Moved 11531 | 42 609 357 96 458 25 351 430 390 246 296 214 86 254 53 328 355 625 220 109 786 282 267 198 244 397 365 331 194 495 495 317 519 805 292 Core 1 | 1 . . . . . . . . . . . . . . . . . . . . . . . . . . . . . . . . . . Treads 11530 | 41 609 357 96 458 25 351 430 390 246 296 214 86 254 53 328 355 625 220 109 786 282 267 198 244 397 365 331 194 495 495 317 519 805 292 Legs . | . . . . . . . . . . . . . . . . . . . . . . . . . . . . . . . . . . . Wheels . | . . . . . . . . . . . . . . . . . . . . . . . . . . . . . . . . . . . Hover . | . . . . . . . . . . . . . . . . . . . . . . . . . . . . . . . . . . . Flight . | . . . . . . . . . . . . . . . . . . . . . . . . . . . . . . . . . . . Fastest Speed 50 | 50 160 180 180 180 180 180 180 180 180 180 180 180 180 160 160 160 160 160 160 160 160 160 160 160 160 160 160 160 160 160 190 180 172 152 Average Speed 170 | 157 161 180 180 180 180 194 186 180 180 180 180 180 180 160 160 160 160 161 160 163 160 160 160 160 160 160 160 160 164 160 190 189 180 171 Slowest Speed 200 | 160 180 180 180 180 180 200 200 180 180 180 180 180 180 160 180 160 180 180 160 180 160 160 160 160 160 180 160 160 190 160 190 190 190 172 Overloaded Moves . | . . . . . . . . . . . . . . . . . . . . . . . . . . . . . . . . . . . Propulsion Burnouts . | . . . . . . . . . . . . . . . . . . . . . . . . . . . . . . . . . . . Robots Hopped . | . . . . . . . . . . . . . . . . . . . . . . . . . . . . . . . . . . . Cave-ins Triggered . | . . . . . . . . . . . . . . . . . . . . . . . . . . . . . . . . . . . Exploration Rate (%) 45 | 4 93 48 18 87 10 33 12 94 8 48 45 71 49 1 97 17 84 56 71 72 10 47 46 60 62 13 55 31 74 63 12 59 37 10 Regions Visited 34 Branch Regions 20 Pre-discovered Areas 6 | . . . . 1 . . . . . . . 1 . . . . . . . . . . . 3 . . 1 . . . . . . . Known Exits Taken 14 | . . . . . . . . . 1 1 1 1 1 . . 1 1 1 1 1 1 . . . . 1 . . . . 1 . 1 . Unknown Exits Taken 16 | 1 1 1 1 1 1 1 . . . . . . . . . . . . . . . 1 1 1 1 . 1 1 1 1 . 1 . . Scrap Searched 20 | . . . 2 . . . . . . 3 1 . 1 . . . . . . . . 3 1 . 1 . 2 2 . 4 . . . . Spaces Dug 34 | . . 3 . . . . 3 . . . . . . . . . . . . 3 1 . . . 5 4 . 1 . . 1 . 13 . Terrain Destroyed 622 | . . 18 . . . 6 82 . . . . . 26 . . . 3 18 . 311 3 8 8 . 5 23 2 10 2 11 4 7 63 12 Melee 22 | . . 3 . . . . 3 . . . . . . . . . . . . 3 1 . . . 5 3 . . . . 1 . 3 . Projectile 149 | . . . . . . 6 . . . . . . . . . . 3 . . 20 2 8 8 . . 20 2 10 2 11 3 7 35 12 AOE 451 | . . 15 . . . . 79 . . . . . 26 . . . . 18 . 288 . . . . . . . . . . . . 25 . Terrain Rammed . | . . . . . . . . . . . . . . . . . . . . . . . . . . . . . . . . . . . Walls Destroyed . | . . . . . . . . . . . . . . . . . . . . . . . . . . . . . . . . . . . Machines Disabled . | . . . . . . . . . . . . . . . . . . . . . . . . . . . . . . . . . . . Actions | -11 -10 -9 -9 -9 -8 -8 -7 -7 -7 -7 -7 -7 -6 -6 -6 -6 -6 -6 -6 -6 -5 -5 -5 -5 -4 -4 -4 -4 -4 -3 -3 -3 -2 -1 --------- Run | Scr Mat Mat Min Exi Min Mat Fac Was Fac Low Low Dat Pro Fac Was Fac Ext Cet Arc Hub Fac Upp Upp Zhi Pro Fac Upp Upp War Pro Res Tes Res Acc Total 15294 | 59 724 610 100 485 27 491 614 440 268 319 254 89 318 59 406 418 865 413 160 988 373 279 234 270 420 552 346 251 777 547 445 702 1055 936 Wait 2026 | . 19 159 . . . 48 87 15 6 24 37 4 46 . 33 36 79 107 34 96 18 6 25 . 5 64 9 38 234 33 101 64 64 535 Move 11500 | 42 608 356 95 457 24 350 430 389 245 295 213 85 253 53 327 354 624 219 108 786 281 266 197 243 396 364 330 193 494 494 316 518 804 291 Hop . | . . . . . . . . . . . . . . . . . . . . . . . . . . . . . . . . . . . Pick Up 174 | 4 13 14 1 4 1 9 12 9 4 . . . . 3 6 9 . 10 3 12 13 . . 6 1 3 . 1 9 . 5 4 15 3 Fast Attach 89 | 7 5 3 . . . 5 3 2 . . . . . . 3 3 1 6 4 4 1 . . 1 . 2 1 . 8 1 1 14 12 2 Attach 68 | . . 4 . 1 . 3 6 2 1 . . . . 2 2 1 . 4 . 3 3 . 1 3 1 3 . . 4 1 2 3 6 12 Detach 3 | . . . . . . . . 2 . . . . . . . . . . . . . . . . . . . . . . . . . 1 Swap 233 | . 11 13 2 2 . 16 16 2 5 . 2 . 8 . 4 2 8 7 2 16 8 2 4 7 4 7 3 2 3 . 7 18 38 14 Drop 276 | . 12 9 1 7 1 21 11 15 7 . 2 . . 1 11 10 5 19 8 13 11 . . 4 1 5 1 . 19 . 5 28 46 3 Fire 641 | 6 48 45 . . . 36 43 . . . . . 11 . 20 . 32 33 1 43 32 5 7 . 7 40 2 17 6 18 7 48 67 67 Melee 49 | . . 4 . . . . 3 2 . . . . . . . . 4 8 . 8 1 . . 6 5 3 . . . . 1 1 3 . Ram . | . . . . . . . . . . . . . . . . . . . . . . . . . . . . . . . . . . . Kick . | . . . . . . . . . . . . . . . . . . . . . . . . . . . . . . . . . . . Crush 50 | . 8 3 1 . 1 3 3 . . . . . . . . 3 2 . . 7 . . . . . 7 . . . . . 4 . 8 Escape Stasis . | . . . . . . . . . . . . . . . . . . . . . . . . . . . . . . . . . . . Rewire 185 | . . . . 14 . . . 2 . . . . . . . . 110 . . . 5 . . . . 54 . . . . . . . . Trap . | . . . . . . . . . . . . . . . . . . . . . . . . . . . . . . . . . . . Miscellaneous . | . . . . . . . . . . . . . . . . . . . . . . . . . . . . . . . . . . . Route ------- -11/Scrapyard -10/Materials (discovered 4 exits: *Mat x3 / [*Min]) -9/Materials (discovered 3 exits: *Mat x2 / [*Min]) -9/Mines -9/Exiles (discovered 2 exits: [*Min x2]) -8/Mines -8/Materials -7/Factory -7/Waste -7/Factory (discovered 3 exits: Sto / *Low x2) -7/Lower Caves -7/Lower Caves -7/Data Miner -6/Proximity Caves -6/Factory -6/Waste -6/Factory (discovered 2 exits: [*Low] / *Ext) -6/Extension (discovered 2 exits: *Fac / *Cet) -6/Cetus (discovered 2 exits: *Fac / *Arc) -6/Archives (discovered 2 exits: *Fac / *Hub) -6/Hub_04(d) (discovered 4 exits: *Fac x4) -5/Factory (discovered 2 exits: *Upp x2) -5/Upper Caves -5/Upper Caves -5/Zhirov -4/Proximity Caves -4/Factory -4/Upper Caves -4/Upper Caves (discovered 2 exits: *Res / *War) -4/Warlord -3/Proximity Caves -3/Research (discovered 2 exits: *Tes x2) -3/Testing -2/Research (discovered 3 exits: *Acc x3) -1/Access (discovered 2 exits: *Sur / Com) To Epsilon Eridani History --------- Turn | Location | Event 18 | -11/Scrapyard | Discovered new exit (range 16) 100 | -11/Scrapyard | Entered Materials 319 | -10/Materials | Build established: Mutant 440 | -10/Materials | Discovered new exit (range 7) 563 | -10/Materials | Discovered new exit (range 7) 874 | -10/Materials | Discovered new exit (range 16) 1273 | -10/Materials | Discovered new exit (range 12) 1294 | -10/Materials | Entered another Materials area 1294 | -9/Materials | Evolved 2 slots: Weapon x2 1562 | -9/Materials | Discovered new exit (range 14) 1597 | -9/Materials | Build established: Hauler-Gunner 1990 | -9/Materials | Discovered new exit (range 10) 2021 | -9/Materials | Discovered new exit (range 10) 2076 | -9/Materials | Build established: Scavenger-Gunner 2138 | -9/Materials | Repaired Lgt. Treads 2165 | -9/Materials | Repaired Lgt. Treads 2192 | -9/Materials | Repaired Assault Rifle 2220 | -9/Materials | Repaired Lgt. Assault Rifle 2247 | -9/Materials | Repaired Lgt. Assault Rifle 2291 | -9/Materials | Entered Mines 2302 | -9/Mines | Learned Materials emergency access door positions 2462 | -9/Mines | Deemed a non-threat by the Exiles lab entrance 2462 | -9/Mines | Discovered new exit (range 5) 2469 | -9/Mines | Entered Exiles 2469 | -9/Exiles | Found Exiles lab destroyed 2496 | -9/Exiles | Discovered new exit (range 15) 2851 | -9/Exiles | Learned location of Zion (-6) 2954 | -9/Exiles | Opened EX-Vault 3122 | -9/Exiles | Found AWS/Thermal 3301 | -9/Exiles | Discovered new exit (range 11) 3317 | -9/Exiles | Entered Mines 3317 | -8/Mines | Accompanied by 2 allies 3321 | -8/Mines | Discovered new exit (range 15) 3364 | -8/Mines | Entered Materials 3364 | -8/Materials | Accompanied by 2 allies 3364 | -8/Materials | Evolved 2 slots: Utility x2 3473 | -8/Materials | Build established: Scavenger-Mutant 3541 | -8/Materials | Destroyed 13 combat bots 3703 | -8/Materials | Repaired Lgt. Treads 4091 | -8/Materials | Garrison activated, responded to threat 4203 | -8/Materials | Garrison activated, responded to threat 4216 | -8/Materials | Discovered new exit (range 13) 4263 | -8/Materials | Entered Factory 4263 | -7/Factory | Evolved 2 slots: Propulsion x1, Utility x1 4548 | -7/Factory | Build established: Hauler-Skirmisher 4562 | -7/Factory | Garrison activated, responded to threat 4932 | -7/Factory | Build established: Scavenger-Tank 5364 | -7/Factory | Sucked down chute 5364 | -7/Factory | Entered Waste 5365 | -7/Waste | Joined by Warlord forces that had cleared the area 5536 | -7/Waste | Build established: Hauler-Tank 5634 | -7/Waste | Discovered new exit (range 13) 6035 | -7/Waste | Found Damper Plating 6090 | -7/Waste | Identified exit to Factory 6107 | -7/Waste | Entered Factory 6107 | -7/Factory | Accompanied by 20 allies 6294 | -7/Factory | Identified exit to Storage 6294 | -7/Factory | Identified exit to Lower Caves 6420 | -7/Factory | Build established: Hauler-Skirmisher 6567 | -7/Factory | Entered Lower Caves 6567 | -7/Lower Caves | Accompanied by 17 allies 7093 | -7/Lower Caves | Discovered new exit (range 7) 7111 | -7/Lower Caves | Identified exit to Lower Caves 7122 | -7/Lower Caves | Entered another Lower Caves area 7122 | -7/Lower Caves | Accompanied by 16 allies 7122 | -7/Lower Caves | Spotted B-75 Beast 7134 | -7/Lower Caves | Allies destroyed B-75 Beast 7341 | -7/Lower Caves | Learned Factory security intel 7471 | -7/Lower Caves | Encountered a Warlord checkpoint 7523 | -7/Lower Caves | Discovered new exit (range 9) 7535 | -7/Lower Caves | Identified exit to Data Miner 7546 | -7/Lower Caves | Entered Data Miner 7546 | -7/Data Miner | Accompanied by 7 allies 7546 | -7/Data Miner | Discovered new exit (range 6) 7581 | -7/Data Miner | Met Data Miner 7626 | -7/Data Miner | Learned location of Section 7 (-2) 7626 | -7/Data Miner | Acquired the access code to Warlord's prototype stash 7653 | -7/Data Miner | Received God Mode back door access code from Data Miner 7698 | -7/Data Miner | Identified exit to Proximity Caves 7703 | -7/Data Miner | Entered Proximity Caves 7703 | -6/Proximity Caves | Accompanied by 7 allies 7843 | -6/Proximity Caves | Escorted by Enhanced Grunt 7924 | -6/Proximity Caves | Attracted the attention of an 0b10 checkpoint 8218 | -6/Proximity Caves | Discovered new exit (range 15) 8245 | -6/Proximity Caves | Identified exit to Factory 8249 | -6/Proximity Caves | Entered Factory 8249 | -6/Factory | Accompanied by 2 allies 8249 | -6/Factory | Evolved 2 slots: Propulsion x1, Utility x1 8338 | -6/Factory | Sucked down chute 8338 | -6/Factory | Entered Waste 8408 | -6/Waste | Destroyed C-40 Crusher 8425 | -6/Waste | 2 allies followed down the chute 8448 | -6/Waste | Spotted C-40 Crusher 8460 | -6/Waste | Destroyed C-40 Crusher 8465 | -6/Waste | Spotted C-40 Crusher 8476 | -6/Waste | Destroyed C-40 Crusher 8485 | -6/Waste | Crushed by Compactor (0 parts destroyed, 1 dropped) 8486 | -6/Waste | Destroyed C-40 Crusher 8497 | -6/Waste | Destroyed C-40 Crusher 8511 | -6/Waste | Found Damper Plating 8514 | -6/Waste | Spotted C-40 Crusher 8567 | -6/Waste | Destroyed C-40 Crusher 8597 | -6/Waste | Found Damper Plating 8692 | -6/Waste | Build established: Hauler-Gunner 8805 | -6/Waste | Warlord forces began an assault 8912 | -6/Waste | Discovered new exit (range 12) 8982 | -6/Waste | Identified exit to Factory 8989 | -6/Waste | Entered Factory 8989 | -6/Factory | Accompanied by 19 allies 9233 | -6/Factory | Spotted B-75 Beast 9236 | -6/Factory | Allies destroyed B-75 Beast 9319 | -6/Factory | Build established: Hauler-Skirmisher 9407 | -6/Factory | Incoming investigation squad redirected 9572 | -6/Factory | Discovered new exit (range 15) 9581 | -6/Factory | Discovered new exit (range 5) 9585 | -6/Factory | Identified exit to Extension 9614 | -6/Factory | Entered Extension 9614 | -6/Extension | Accompanied by 13 allies 9766 | -6/Extension | Spotted B-75 Beast 9789 | -6/Extension | Disrupted transfer network 9797 | -6/Extension | Destroyed B-75 Beast 9835 | -6/Extension | Rescued a captive Derelict 9899 | -6/Extension | Rescued a captive Derelict 9901 | -6/Extension | Rescued a captive Derelict 9925 | -6/Extension | Rescued a captive Derelict 9925 | -6/Extension | Rescued a captive Derelict 10008 | -6/Extension | Build established: Hauler-Gunner 10105 | -6/Extension | Rescued a captive Derelict 10106 | -6/Extension | Rescued a captive Derelict 10132 | -6/Extension | Rescued a captive Derelict 10132 | -6/Extension | Rescued a captive Derelict 10477 | -6/Extension | Rescued a captive Derelict 10572 | -6/Extension | Rescued a captive Derelict 10684 | -6/Extension | Rescued a captive Derelict 10685 | -6/Extension | Rescued a captive Derelict 10705 | -6/Extension | Rescued A7 10869 | -6/Extension | Discovered new exit (range 10) 10871 | -6/Extension | Discovered new exit (range 6) 10909 | -6/Extension | Identified exit to Cetus 10937 | -6/Extension | Entered Cetus 10937 | -6/Cetus | Accompanied by 1 ally (A7) 10942 | -6/Cetus | Acquired a Cetus Manufacturing Module code from A7 10961 | -6/Cetus | Spotted Cetus Guard 10961 | -6/Cetus | Spotted Cetus Guard 10964 | -6/Cetus | Spotted Cetus Guard 10968 | -6/Cetus | Destroyed Cetus Guard 10968 | -6/Cetus | Spotted Cetus Guard 10973 | -6/Cetus | Allies destroyed Cetus Guard 10985 | -6/Cetus | Allies destroyed Cetus Guard 11117 | -6/Cetus | Started Cetus Manufacturing Module 11142 | -6/Cetus | Manufactured an Enhanced Grunt 11167 | -6/Cetus | Manufactured an Enhanced Grunt 11188 | -6/Cetus | Discovered new exit (range 15) 11192 | -6/Cetus | Manufactured an Enhanced Grunt 11217 | -6/Cetus | Manufactured an Enhanced Grunt 11242 | -6/Cetus | Manufactured an Enhanced Grunt 11284 | -6/Cetus | Build established: Scavenger-Mutant 11338 | -6/Cetus | Spotted Cetus Guard 11339 | -6/Cetus | Spotted Cetus Guard 11345 | -6/Cetus | Spotted Cetus Guard 11346 | -6/Cetus | Spotted Cetus Guard 11355 | -6/Cetus | Allies destroyed Cetus Guard 11355 | -6/Cetus | Destroyed Cetus Guard 11360 | -6/Cetus | Destroyed Cetus Guard 11365 | -6/Cetus | Destroyed Cetus Guard 11383 | -6/Cetus | Discovered new exit (range 15) 11394 | -6/Cetus | Met Revision 17 11488 | -6/Cetus | Destroyed A7 11492 | -6/Cetus | Extracted ID and sensor layout for unrecognized location from A7's data core 11514 | -6/Cetus | Identified exit to Archives 11528 | -6/Cetus | Entered Archives 11528 | -6/Archives | Accompanied by 5 allies 11606 | -6/Archives | Found Prototype Device 11606 | -6/Archives | Identified Exp. Thermal Shield 11632 | -6/Archives | Discovered new exit (range 15) 11661 | -6/Archives | Discovered new exit (range 14) 11683 | -6/Archives | Build established: Scavenger-Tank 11694 | -6/Archives | Identified exit to Hub_04(d) 11752 | -6/Archives | Entered Hub_04(d) 11752 | -6/Hub_04(d) | Accompanied by 4 allies 11986 | -6/Hub_04(d) | Discovered new exit (range 10) 11989 | -6/Hub_04(d) | Discovered new exit (range 15) 12021 | -6/Hub_04(d) | Identified exit to Factory 12736 | -6/Hub_04(d) | Spotted B-75 Beast 12753 | -6/Hub_04(d) | Allies destroyed B-75 Beast 13099 | -6/Hub_04(d) | Network Hub disabled 13099 | -6/Hub_04(d) | Network Hub disabled 13152 | -6/Hub_04(d) | First assault squad dispatched 13153 | -6/Hub_04(d) | Spotted Lightning 13159 | -6/Hub_04(d) | Spotted Lightning 13161 | -6/Hub_04(d) | Spotted Lightning 13162 | -6/Hub_04(d) | Spotted Lightning 13163 | -6/Hub_04(d) | Spotted Lightning 13169 | -6/Hub_04(d) | Incoming assault squad redirected 13171 | -6/Hub_04(d) | Spotted Lightning 13214 | -6/Hub_04(d) | Destroyed Lightning 13234 | -6/Hub_04(d) | Destroyed Lightning 13251 | -6/Hub_04(d) | Destroyed Lightning 13255 | -6/Hub_04(d) | Destroyed Lightning 13262 | -6/Hub_04(d) | Destroyed Lightning 13279 | -6/Hub_04(d) | High security lockdown imminent 13279 | -6/Hub_04(d) | Destroyed Lightning 13307 | -6/Hub_04(d) | Destroyed 11 combat bots 13307 | -6/Hub_04(d) | Found Prototype Processor 13307 | -6/Hub_04(d) | Identified Exp. Targeting Computer 13316 | -6/Hub_04(d) | Found Exp. Targeting Computer 13359 | -6/Hub_04(d) | High security lockdown engaged 13361 | -6/Hub_04(d) | Entered Factory 13361 | -5/Factory | Evolved 2 slots: Utility x1, Weapon x1 13608 | -5/Factory | Build established: Scavenger-Gunner 13661 | -5/Factory | First assault squad dispatched 13846 | -5/Factory | Identified exit to Upper Caves 13971 | -5/Factory | Entered Upper Caves 14026 | -5/Upper Caves | Learned Factory stockpile data 14409 | -5/Upper Caves | Discovered new exit (range 9) 14423 | -5/Upper Caves | Entered another Upper Caves area 14683 | -5/Upper Caves | Learned 4 Factory zone layouts 14788 | -5/Upper Caves | Discovered new exit (range 5) 14795 | -5/Upper Caves | Entered Zhirov 14795 | -5/Zhirov | Discovered new exit (range 3) 14824 | -5/Zhirov | Met Zhirov 14853 | -5/Zhirov | Learned location of Quarantine (-2) 14853 | -5/Zhirov | Learned location of Testing (-3) 14853 | -5/Zhirov | Learned location of Command (-1) 14869 | -5/Zhirov | Zhirov requested help retrieving the SGEMP Prototype 14898 | -5/Zhirov | Found Alien Artifact 14899 | -5/Zhirov | Identified Integrated Reactor 14899 | -5/Zhirov | Installed Integrated Reactor, increased core energy generation (+10) 14967 | -5/Zhirov | Found Alien Artifact 15222 | -5/Zhirov | Entered Proximity Caves 15224 | -4/Proximity Caves | Attracted the attention of an 0b10 checkpoint 15883 | -4/Proximity Caves | Discovered new exit (range 15) 15907 | -4/Proximity Caves | Entered Factory 15907 | -4/Factory | Evolved 2 slots: Utility x2 15908 | -4/Factory | Identified exit to Upper Caves 16792 | -4/Factory | Entered Upper Caves 17326 | -4/Upper Caves | Discovered new exit (range 10) 17343 | -4/Upper Caves | Entered another Upper Caves area 17382 | -4/Upper Caves | Discovered new exit (range 5) 17477 | -4/Upper Caves | Ambushed by wild Derelicts 17592 | -4/Upper Caves | Encountered a Warlord checkpoint 17705 | -4/Upper Caves | Discovered new exit (range 9) 17748 | -4/Upper Caves | Entered Warlord 17801 | -4/Warlord | System corruption cleaned by Quarantine Array 18275 | -4/Warlord | Received a Watcher feed algorithm from an ecstatic Tinkerer 18283 | -4/Warlord | Met Warlord 18298 | -4/Warlord | Opened Warlord's prototype stash 18307 | -4/Warlord | Found Prototype Reactor 18308 | -4/Warlord | Warlord's base attacked by MAIN.C 18316 | -4/Warlord | Found Prototype Device 18316 | -4/Warlord | Identified Exp. Phase Shifter 18328 | -4/Warlord | Found Prototype Device 18328 | -4/Warlord | Identified System Purifier 18331 | -4/Warlord | Found Prototype Processor 18658 | -4/Warlord | Warlord forces counterattacked 18697 | -4/Warlord | Spotted Executioner 18704 | -4/Warlord | Spotted Striker 18792 | -4/Warlord | Discovered new exit (range 15) 18825 | -4/Warlord | P-70 Sage assimilated allied GJ-RU8(g) 18857 | -4/Warlord | Entered Proximity Caves 18892 | -3/Proximity Caves | Attracted the attention of an 0b10 checkpoint 19371 | -3/Proximity Caves | Destroyed 7 combat bots 19440 | -3/Proximity Caves | Spotted B-86 Titan 19472 | -3/Proximity Caves | Destroyed B-86 Titan 19735 | -3/Proximity Caves | Discovered new exit (range 12) 19751 | -3/Proximity Caves | Entered Research 19751 | -3/Research | Evolved 2 slots: Power x1, Utility x1 19752 | -3/Research | Identified Vortex Chain Reactor 19885 | -3/Research | Identified exit to Testing 19951 | -3/Research | Revision forces began assault on 0b10 20017 | -3/Research | Met up with Revision 17++ 20353 | -3/Research | Fabricated KE Penetrator (x2) 20414 | -3/Research | Fabricated KE Penetrator (x2) 20451 | -3/Research | Research terminal network offline 20502 | -3/Research | Entered Testing 20521 | -3/Testing | Found Prototype Energy Cannon 20521 | -3/Testing | Identified Null Cannon 20714 | -3/Testing | Build established: Hauler-Gunner 20815 | -3/Testing | Found Prototype Processor 20815 | -3/Testing | Identified Exp. Signal Interpreter 20986 | -3/Testing | Identified Exp. Target Analyzer 21338 | -3/Testing | Discovered new exit (range 9) 21574 | -3/Testing | Build established: Scavenger-Gunner 21710 | -3/Testing | Destroyed 7 combat bots 21803 | -3/Testing | Entered Research 21803 | -2/Research | Warlord forces began assault on 0b10 21803 | -2/Research | Evolved 2 slots: Utility x1, Weapon x1 21913 | -2/Research | Research machine network offline 21972 | -2/Research | Found Prototype Processor 21972 | -2/Research | Identified Exp. Core Analyzer 22103 | -2/Research | Build established: Scavenger-Executioner 22467 | -2/Research | Borebot progress halted 22493 | -2/Research | Borebot progress halted 22724 | -2/Research | Borebot progress halted 22802 | -2/Research | Spotted Executioner 22804 | -2/Research | Spotted Striker 22810 | -2/Research | Spotted Striker 22813 | -2/Research | Destroyed Striker 22828 | -2/Research | Destroyed Striker 23065 | -2/Research | Discovered new exit (range 11) 23096 | -2/Research | Identified exit to Access 23174 | -2/Research | Spotted Striker 23230 | -2/Research | Spotted B-90 Cyclops 23252 | -2/Research | Destroyed B-90 Cyclops 23258 | -2/Research | Met up with Warlord 23259 | -2/Research | Warlord invited to help at Command 23432 | -2/Research | Warlord destroyed during the assault 23462 | -2/Research | Discovered exit to Access (range 7) 23528 | -2/Research | Spotted B-90 Cyclops 23538 | -2/Research | Destroyed B-90 Cyclops 23596 | -2/Research | Spotted Striker 23603 | -2/Research | Destroyed Striker 23653 | -2/Research | High security lockdown imminent 23656 | -2/Research | Discovered exit to Access (range 9) 23686 | -2/Research | Entered Access 23686 | -1/Access | Evolved 2 slots: Utility x1, Weapon x1 23976 | -1/Access | First assault squad dispatched 24031 | -1/Access | Destroyed 8 combat bots 24166 | -1/Access | Identified exit to Command 24237 | -1/Access | Destroyed 9 combat bots 24286 | -1/Access | Identified exit to Surface 24385 | -1/Access | Destroyed 9 combat bots 24385 | -1/Access | Lost 7 parts (1n3u3w) 24435 | -1/Access | Incoming investigation squad redirected 24451 | -1/Access | Incoming assault squad redirected 25031 | -1/Access | High security lockdown imminent 25040 | *** | Escaped! Last Messages --------------- 25027_ HV Slug penetrates Sealed Barrier. 25027_ Slug penetrates G-73 Enforcer. 25027_ HV Slug penetrates G-73 Enforcer. 25027_ HV Slug penetrates Sealed Barrier. 25027_ HV Slug penetrates G-73 Enforcer. 25027_ HV Slug penetrates Sealed Barrier. 25027_ Slug penetrates G-73 Enforcer. 25027_ G-73 Enforcer suffers critical hit. 25027_ Destroyed Adv. Heat Sink. 25027_ Slug penetrates G-73 Enforcer. 25029_ R-10 Processor collects Imp. Antigrav System. 25031_ HV Slug penetrates G-73 Enforcer. 25031_ G-73 Enforcer suffers critical hit. 25031_ G-73 Enforcer destroyed. 25031_ ALERT: High security lockdown imminent, T-100. 25031_ Slug penetrates Sealed Barrier. 25031_ HV Slug penetrates Sealed Barrier. 25031_ Slug penetrates Sealed Barrier. 25034_ R-10 Processor collects Myomer Leg. 25040_ Ended siege mode. Map ----- +----------------------------------------------------+ | ??????????+ ???????#####?#################[=#???? | | ??????????# #??????? " # """""" ##*[#???? | | ??????????# #??????? """ # ""S""" ##=%#???? | | ??????????# #????????"" # """ ##%|##??? | | ??????????# #????????? | # =#!!%%#??? | | ??????????# ????????? + =*/!![[#??? | | ??????????# ##????????! # [#==!%#??? | | ??????????# # #??????![! ?# #*[![#??? | | ??????????# ## #?????=%[??##+#############%###??? | | ????????# #?# #?###/##???# #???????????#+#????? | | ? ??????#!!#######!!=!#####=##??????????!%!????? | | ? " ????#%! % %=%=%=*%[*==%=!#??????????%*!????? | | ? """ ??#=%% %!%%%%%%!%!%[== + [ ??????!!%????? | | """ # #######[![=########?????????? ! ????? | | " / !#?????######????????????????? ????? | | # #???????????????????????????? ????? | | ??# #???????????????????????????# ???? | | #####+????# #???????????????????????????# ???? | | ??????????# #???????????????????????????# ???? | | ??????????# #######"######??????????????? ???? | | ??????????# """T"""" ???????????????? ???? | | ??????????# """ """" ????????????????? ???? | | ??????????# "[ """"""????????????????????? | | ??????????# %"%%"[!/ "????????????????????? | | ????????? # m %R=!%%*!%="????????????????????? | | ??????????# = **%"=%!=@=*"????????????????????? | | ??????????# "%!"*!! "????????????????????? | | ??????????# "=*""""""????????????????????? | | ??????????# "% ?????????????????????????? | | ??????????# " ????????????????????????? | | ??????????# #######"#####???????????????????????? | | ??????????# #???????????????????????????????????? | | ??????????# #???????????????????????????????????? | | ??????????# ????????????????????????????????????? | | ??????????# ????????????????????????????????????? | | ??????????# ????????????????????????????????????? | | ??????????# ????????????????????????????????????? | | ??????????? ????????????????????????????????????? | | ?????????????????????????????????????????????????? | | ?????????????????????????????????????????????????? | | ?????????????????????????????????????????????????? | | ?????????????????????????????????????????????????? | | ?????????????????????????????????????????????????? | | ?????????????????????????????????????????????????? | | ?????????????????????????????????????????????????? | | ?????????????????????????????????????????????????? | | ?????????????????????????????????????????????????? | | ?????????????????????????????????????????????????? | | ?????????????????????????????????????????????????? | | ?????????????????????????????????????????????????? | +----------------------------------------------------+ Best States ------------- Heat Dissipation 83 Energy Generation 65 Energy Capacity 700 Matter Stores 300 Matter Capacity 300 Sight Range 16 Robot Scan Range 20 Terrain Scan Density 10 Jamming Range 16 Power Amplification 30 Armor Coverage 2400 Resistance: TH 30 Resistance: EM 90 Weapon Shielding 90 Phase Shifting 20 Evasion (%) 60 Targeting Accuracy 12 Target Analysis 12 Core Analysis 15 Armor Integrity Analysis 33 Recoil Reduction 4 Salvage Targeting 3 Defensive Hacking 14 Item Schematics ----------------- Hcp. Storage Unit | -10/Materials | Hacked KE Penetrator | -7/Factory | Downloaded Imp. Target Analyzer | -7/Factory | Hacked Combat Drone Bay | -7/Data Miner | Free Lgt. Regenerative Plating | -7/Data Miner | Free Exp. Flexi-carbon Leg | -7/Data Miner | Free Cmb. Gravmag System | -7/Data Miner | Free Triangulator | -7/Data Miner | Free Tactical Coordination Suite | -7/Data Miner | Free Exp. Transmission Jammer | -7/Data Miner | Free Exp. ECM Suite | -7/Data Miner | Free Cloaking Device | -7/Data Miner | Free Assault Drone Bay | -5/Zhirov | Free Exp. Heat Sink | -5/Zhirov | Free Exp. Optical Array | -5/Zhirov | Free Imp. Arc Thrower | -5/Zhirov | Free Biometal Heavy Treads | -3/Testing | Hacked Robot Schematics ------------------ S-27 Virus | -7/Data Miner | Free G-50 Soldier | -7/Data Miner | Free I-36 Angel | -7/Data Miner | Free I-47 Archangel | -7/Data Miner | Free Fabricated ------------ KE Penetrator | x2 | -3/Research KE Penetrator | x2 | -3/Research Alien Tech Used ----------------- Integrated Reactor Achievements -------------- None Challenges ------------ None Game ------ Seed AbsorptionScatterPod Manual? 0 Play Time 02:23:26 Cumulative 664.1 hours Start 2020.12.01 @ 17:33:55 End 2020.12.02 @ 09:09:22 Sessions 3 Manual Loads 0 Difficulty Rogue Special Mode None Game No. 1004 Rogue 1004 Adventurer 0 Explorer 0 Win Type 0 Total 64 Types 39/1/9/11/4/0/0/0/0 Lore% 94 Gallery% 94 Achievement% 83 Wizard Run 0 Options --------- ASCII 1 Keyboard 0 Movement Numpad Keybinds 0 Fullscreen 0 Font 14/SmallcapsGlow Map View 76x50 Tactical HUD 1 Map Filters NONE Filters NONE Steam 1 RUN: 41ec608f-5333-48f3-9ee6-d729bebd8142